Cogmind - Beta 13 @@@ ROGUE MODE // 2024.04.09 @ 07:21:48 Player: Dimolishon12 Result: Destroyed by G-34 Mercenary with Small Laser Performance ------------- Evolutions (1) 500 Regions Visited (2) 400 Robots Destroyed (40) 200 Value Destroyed (772) 772 Prototype IDs (0) 0 Alien Tech Used (0) 0 Bonus (0) 0 TOTAL SCORE: 1872 Bonus ------- None Cogmind --------- Core Integrity 0/400 Matter 295/300 Energy 33/100 System Corruption 2% Temperature Cool (6) Movement Core (300) Ox5 Location -9/Materials Parts ------- > --- POWER (1) -------- (None) > --- PROPULSION (4) --- (None) > --- UTILITY (2) ------ Medium Storage Unit Signal Interpreter > --- WEAPON (2) ------- Shock Bomb Launcher > --- INVENTORY (10) --- Structural Scanner Visual Processing Unit Sensor Array Improved Terrain Scanner Seismic Detector ECM Suite Heavy Assault Rifle Datajack Peak State ------------ > --- POWER ------------ Ion Engine > --- PROPULSION ------- Flight Unit VTOL Module > --- UTILITY ---------- Medium Storage Unit Signal Interpreter > --- WEAPON ----------- Shock Bomb Launcher Shock Bomb Launcher > --- INVENTORY -------- Light Ion Engine Structural Scanner Visual Processing Unit Sensor Array Improved Terrain Scanner Seismic Detector ECM Suite Heavy Assault Rifle Datajack [Rating: 13] Favorites ----------- Power Light Ion Engine Engine Light Ion Engine Power Core Light Nuclear Core Propulsion Compact Wheel Treads Light Treads Wheel Compact Wheel Flight Unit Flight Unit Utility Medium Storage Unit Device ECM Suite Storage Medium Storage Unit Processor Signal Interpreter Weapon Medium Laser Energy Gun Medium Laser Energy Cannon Beam Cannon Ballistic Gun Light Assault Rifle Launcher Shock Bomb Launcher Special Weapon Mining Laser Slashing Weapon Mining Claw Special Melee Weapon Datajack Build | -11 -10 -9 ------- Run | Yrd Mat Mat Slots Evolved 2 | . . 2 Power . | . . . Propulsion 2 | . . 2 Utility . | . . . Weapon . | . . . Parts Attached 49 | 8 9 32 Power 8 | 1 1 6 Engine 7 | 1 . 6 Core 1 | . 1 . Reactor . | . . . Propulsion 11 | 2 . 9 Treads 1 | . . 1 Leg . | . . . Wheel 2 | 2 . . Hover . | . . . Flight 8 | . . 8 Utility 7 | 3 4 . Device 4 | 2 2 . Storage 2 | 1 1 . Processor 1 | . 1 . Hackware . | . . . Protection . | . . . Artifact . | . . . Weapon 23 | 2 4 17 Energy Gun 3 | 1 . 2 Energy Cannon 5 | . 1 4 Ballistic Gun 2 | 1 . 1 Ballistic Cannon . | . . . Launcher 7 | . 1 6 Special Weapon 1 | . . 1 Impact Weapon . | . . . Slashing Weapon 2 | . 1 1 Piercing Weapon . | . . . Special Melee Weapon 3 | . 1 2 Unidentified Prototypes . | . . . Corrupted Parts 1 | . . 1 System Corruption 1 | . . 1 Parts Lost 15 | . . 15 Power 3 | . . 3 Propulsion 5 | . . 5 Utility . | . . . Weapon 7 | . . 7 Highest Loss Streak 7 | . . 7 To Critical Strikes . | . . . Average Slot Usage (%) 85 | . 100 70 Engine 10 | . 12 7 Wheel 15 | . 28 3 Flight 9 | . . 19 Device 5 | . 10 . Storage 12 | . 14 11 Processor 7 | . 3 11 Energy Gun 5 | . 10 . Energy Cannon 6 | . 8 3 Ballistic Gun 2 | . 3 1 Launcher 4 | . 1 6 Slashing Weapon 1 | . 2 . Special Melee Weapon 2 | . 1 2 Naked Turns . | . . . Heaviest Build 27 | 12 21 27 Greatest Support 26 | 26 26 26 Greatest Overweight (x) 7 | . . 7 Average Overweight (x) . | . . 1 Largest Inventory Capacity 10 | 8 10 10 Average Capacity 9 | 7 9 10 Most Carried 10 | 4 10 10 Average Carried 6 | . 6 8 Final Capacity 10 | 8 10 10 Final Carried 10 | 1 10 8 Class Distribution -------------------- 85% | Mutant 14% | Scavenger-Mutant Dominant Class ---------------- Mutant | -10/Materials Mutant | -9/Materials Resources | -11 -10 -9 ----------- Run | Yrd Mat Mat Matter Collected 787 | 297 114 376 Remotely . | . . . Salvage Created 1347 | 136 264 947 Parts 89 | 15 19 55 Haulers Intercepted 2 | . . 2 Recyclers Shooed . | . . . Parts Field Recycled . | . . . Retrieved Matter . | . . . Parts Self-Destructed . | . . . Prevented . | . . . Kills | -11 -10 -9 ------- Run | Yrd Mat Mat Combat Hostiles Destroyed 21 | . 8 13 Guns 3 | . 3 . Cannons 9 | . 3 6 AOE 9 | . 2 7 Classes Destroyed 10 | 2 3 5 Worker 4 | 2 . 2 Builder 4 | . . 4 Tunneler 5 | 5 . . Hauler 2 | . . 2 Recycler 2 | . . 2 Watcher 2 | . 1 1 Swarmer 6 | . 3 3 Grunt 11 | . 5 6 Duelist 1 | . . 1 Sentry 3 | . . 3 Best Kill Streak 8 | 5 3 8 Combat Bots Only 3 | . 3 3 Max Kills in Single Turn 5 | 1 2 5 Gunslinging . | . . . Exploded 2 | . 2 2 Melee . | . . . Uniques/NPCs Destroyed . | . . . Combat | -11 -10 -9 -------- Run | Yrd Mat Mat Hostile Shots Fired 142 | . 25 117 Missed 41 | . 10 31 Damage Taken 1585 | . 185 1400 Core 485 | . 85 400 Absorbed by Shields . | . . . Core Remaining (%) 83 | 100 66 . Volleys Fired 84 | 17 29 38 Largest 2 | 2 2 2 Hottest 110 | 70 110 100 Shots Fired 137 | 34 52 51 Gun 82 | 34 40 8 Cannon 33 | . 11 22 Launcher 22 | . 1 21 Special . | . . . Kinetic 31 | 17 14 . Thermal 84 | 17 37 30 Explosive 7 | . 1 6 Electromagnetic 15 | . . 15 Robot Hit Streak 8 | 7 8 8 Robot Miss Streak 6 | 2 3 6 Penetration Max . | . . . Secondary Targets . | . . . Shots Hit Robots 81 | 21 31 29 Core Hits 55 | 10 14 31 Critical Kills . | . . . Critical Parts Destroyed . | . . . Critical Strikes 3 | 3 . . Burn 3 | 3 . . Melee Attacks 11 | . 8 3 Impact . | . . . Slashing 4 | . 3 1 Piercing . | . . . Sneak Attacks 1 | . 1 . Combat Hostiles . | . . . Follow-up Attacks . | . . . Damage Inflicted 2076 | 220 453 1403 Guns 486 | 220 221 45 Cannons 402 | . 140 262 Explosions 1172 | . 92 1080 Melee 16 | . . 16 Ramming . | . . . Kinetic 117 | 59 58 . Thermal 918 | 161 303 454 Explosive 285 | . 92 193 Electromagnetic 740 | . . 740 Impact . | . . . Slashing 16 | . . 16 Piercing . | . . . Highest Corruption 2 | . . 2 Average Corruption 1 | . . 1 Corruption Purged . | . . . Corruption Blocked . | . . . Effects 2 | . . 2 Message Errors 1 | . . 1 Heat Flow Errors 1 | . . 1 Overload Shots . | . . . Overflow Damage 36 | . . 36 Projectiles . | . . . Explosions 36 | . . 36 Melee . | . . . Knockbacks . | . . . Impact . | . . . Kinetic . | . . . Secondary . | . . . Self-Inflicted Damage 219 | . 14 205 Shots 12 | . 1 11 Rammed . | . . . Targets Rammed . | . . . Kicked . | . . . Crushed . | . . . Highest Temperature 231 | 100 200 231 Average Temperature 51 | 44 47 61 Received Heat Transfer 459 | . 63 396 Effects 1 | . 1 . Energy Bleed 1 | . 1 . Siege Activations . | . . . Robots Corrupted . | . . . Combat Hostiles . | . . . Parts Fried 3 | . . 3 Impact Corruptions . | . . . Robots Melted . | . . . Combat Hostiles . | . . . Parts Melted 3 | 2 . 1 Heat Transferred 2409 | 703 777 929 Parts Sabotaged . | . . . Parts Stolen . | . . . Parts Stripped . | . . . Power Chain Reactions 4 | . . 4 Alert | -11 -10 -9 ------- Run | Yrd Mat Mat Peak Influence 255 | 35 227 255 Initial 35 | . 22 35 Average 113 | 12 95 150 Maximum Alert Level 1 | . 1 1 Low Security (%) 74 | 100 92 52 Level 1 25 | . 7 47 Level 2 . | . . . Level 3 . | . . . Level 4 . | . . . Level 5 . | . . . High Security . | . . . Max Security . | . . . Squads Dispatched 3 | . 2 1 Investigation . | . . . Extermination . | . . . Reinforcement 3 | . 2 1 Assault . | . . . Garrison . | . . . Intercept . | . . . Searches Triggered . | . . . Construction Impeded 1 | . . 1 Haulers Reinforced . | . . . Active Scanning Responses . | . . . Cargo Convoy Interrupts . | . . . Stealth | -11 -10 -9 --------- Run | Yrd Mat Mat Distress Signals 3 | . 2 1 Communications Jammed . | . . . Distress Signals . | . . . Times Spotted 35 | . 18 17 Peak Tracking Total 5 | . 4 5 Tactical Retreats 2 | . 1 1 Traps | -11 -10 -9 ------- Run | Yrd Mat Mat Traps Triggered 3 | . . 3 Indirectly . | . . . Trap Hack Attempts . | . . . Triggered . | . . . Disarmed . | . . . Reprogrammed . | . . . Reused . | . . . Traps Extracted . | . . . Installed . | . . . Triggered . | . . . Machines | -11 -10 -9 ---------- Run | Yrd Mat Mat Machines Disabled 1 | . . 1 Max in Single Turn 1 | . . 1 Machines Repaired . | . . . Machines Dismantled . | . . . Machines Sabotaged . | . . . Overloaded Fab Kills . | . . . Hacking | -11 -10 -9 --------- Run | Yrd Mat Mat Machines Accessed 1 | . 1 . Terminals 1 | . 1 . Fabricators . | . . . Repair Stations . | . . . Recycling Units . | . . . Scanalyzers . | . . . Garrison Access . | . . . Total Hacks 2 | . 2 . Successful 2 | . 2 . Failed . | . . . Catastrophic . | . . . Database Lockouts . | . . . Manual . | . . . Terminals 2 | . 2 . Fabricators . | . . . Repair Stations . | . . . Recycling Units . | . . . Scanalyzers . | . . . Garrison Access . | . . . Terminal Hacks 2 | . 2 . Alert Level 1 | . 1 . Maintenance Status 1 | . 1 . Fabricator Hacks . | . . . Repair Station Hacks . | . . . Recycling Unit Hacks . | . . . Scanalyzer . | . . . Garrison Access Hacks . | . . . Unauthorized Hacks . | . . . Terminals . | . . . Fabricators . | . . . Repair Stations . | . . . Recycling Units . | . . . Scanalyzers . | . . . Garrison Access . | . . . Data Cores Recovered . | . . . Used . | . . . Hacking Detections . | . . . Full Trace Events . | . . . Feedback Events . | . . . Feedback Blocked . | . . . Robot Schematics Acquired . | . . . Robots Built . | . . . Authchips . | . . . Time . | . . . Total Robot Build Rating . | . . . Part Schematics Acquired . | . . . Parts Built . | . . . Authchips . | . . . Time . | . . . Total Part Build Rating . | . . . Parts Repaired . | . . . Time . | . . . Parts Recycled . | . . . Recycled Matter . | . . . Retrieved Matter . | . . . Retrieved Components . | . . . Parts Scanalyzed . | . . . Part Schematics Acquired . | . . . Parts Damaged . | . . . Bothacking | -11 -10 -9 ------------ Run | Yrd Mat Mat Used RIF Installer . | . . . Robots Hacked 3 | . 2 1 Non-combat 2 | . 2 . Combat 1 | . . 1 Robot Hacks Applied 4 | . 3 1 parse_system 3 | . 2 1 no_distress 1 | . 1 . Relay Couplers Released . | . . . Fabnet Peak Effective % . | . . . Robots Rewired . | . . . Allies Hacked . | . . . Hacks Repelled . | . . . Allies | -11 -10 -9 -------- Run | Yrd Mat Mat Total Allies . | . . . Largest Group . | . . . Highest-Rated Group . | . . . Highest-Rated Ally . | . . . Total Orders . | . . . Ally Attacks . | . . . Total Damage . | . . . Kills . | . . . Allies Corrupted . | . . . Allies Melted . | . . . Intel | -11 -10 -9 ------- Run | Yrd Mat Mat Robot Analysis Total . | . . . Derelict Logs Recovered . | . . . Drone Launches . | . . . Drone Recoveries . | . . . Exploration | -11 -10 -9 ------------- Run | Yrd Mat Mat Turns Passed 1397 | 123 638 636 Spaces Moved 1002 | 71 575 356 Core 23 | 11 . 12 Treads 12 | . . 12 Legs . | . . . Wheels 714 | 60 575 79 Hover . | . . . Flight 253 | . . 253 Fastest Speed 29 | 50 90 29 Average Speed 104 | 83 90 131 Slowest Speed 435 | 90 90 435 Overloaded Moves . | . . . Propulsion Burnouts . | . . . Robots Hopped . | . . . Cave-ins Triggered . | . . . Exploration Rate (%) 35 | 5 80 20 Regions Visited 2 Branch Regions . Pre-discovered Areas . | . . . Known Exits Taken 1 | . 1 . Unknown Exits Taken 1 | 1 . . Scrap Searched . | . . . Spaces Dug 2 | . 2 . Terrain Destroyed 59 | . 10 49 Melee 2 | . 2 . Projectile . | . . . AOE 57 | . 8 49 Terrain Rammed . | . . . Walls Destroyed . | . . . Machines Disabled . | . . . Actions | -11 -10 -9 --------- Run | Yrd Mat Mat Total 1209 | 103 635 471 Wait 15 | . 1 14 Move 1000 | 70 574 356 Hop . | . . . Pick Up 39 | 8 11 20 Fast Attach 5 | . . 5 Attach 27 | 7 1 19 Detach 2 | . 1 1 Swap 17 | 1 8 8 Drop 9 | . 2 7 Fire 84 | 17 29 38 Melee 11 | . 8 3 Ram . | . . . Kick . | . . . Crush . | . . . Escape Stasis . | . . . Rewire . | . . . Trap . | . . . Miscellaneous . | . . . Route ------- -11/Scrapyard -10/Materials (discovered 3 exits: *Mat x2 / [*Min]) -9/Materials History --------- Turn | Location | Event 5 | -11/Scrapyard | Discovered new exit (range 16) 124 | -11/Scrapyard | Entered Materials 300 | -10/Materials | Build established: Mutant 305 | -10/Materials | Discovered new exit (range 7) 360 | -10/Materials | Discovered new exit (range 13) 539 | -10/Materials | Discovered new exit (range 8) 730 | -10/Materials | Identified exit to Materials 762 | -10/Materials | Entered another Materials area 762 | -9/Materials | Evolved 2 slots: Propulsion x2 852 | -9/Materials | Lost 5 parts (1p1n3w) 914 | -9/Materials | Core integrity fell below 50% 1342 | -9/Materials | Core integrity fell below 20% 1391 | -9/Materials | Lost 7 parts (2p2n3w) 1398 | -9/Materials | Destroyed by G-34 Mercenary with Small Laser Last Messages --------------- U-05 Engineer lays Concrete. K-01 Serf collects debris. U-05 Engineer builds a Wall. K-01 Serf collects debris. U-05 Engineer lays Concrete. K-01 Serf collects debris. U-05 Engineer destroyed. K-01 Serf destroyed. Destroyed Sml. Matter Pod. Chain reaction triggered in Corrupted Lgt. Ion Engine. K-01 Serf destroyed. U-05 Engineer destroyed. R-06 Scavenger collects Corrupted Com. Wheel. Acquired 5 matter. R-06 Scavenger collects Corrupted Prototype Ballistic Gun. Acquired 5 matter. R-06 Scavenger collects Terrain Scan Processor.